[Event "125-Jahre Werder Bremen 2024"]
[Site "Bremen"]
[Date "2024.03.08"]
[Round "7.12"]
[White "Wiegmann, Sascha"]
[Black "Guichard, Pauline"]
[Result "1-0"]
[ECO "A07"]
[WhiteElo "2297"]
[BlackElo "2385"]
[Annotator "ChessBase"]
[PlyCount "113"]
[EventDate "2024.02.26"]
[EventType "swiss"]
[EventCountry "GER"]
[SourceTitle "playchess.com"]
[Source "ChessBase"]
[SourceQuality "1"]
[TimeControl "40/6000+30:1800+30"]

1. Nf3 {[%emt 0:00:03]} Nf6 {[%emt 0:00:05]} 2. g3 {[%emt 0:00:04]} d5 {[%emt 0:00:16]} 3. Bg2 {[%emt 0:00:02]} g6 {[%emt 0:00:15]} 4. O-O {[%emt 0:00:14]} Bg7 {[%emt 0:00:11]} 5. d3 {[%emt 0:01:45]} O-O {[%emt 0:00:47]} 6. Nbd2 {[%emt 0:00:35]} Re8 {[%emt 0:03:54]} 7. e4 {[%emt 0:00:13]} dxe4 {[%emt 0:00:50]} 8. dxe4 {[%emt 0:00:21]} e5 {[%emt 0:00:36]} 9. Qe2 {[%emt 0:02:57]} b6 {[%emt 0:12:18]} 10. Rd1 {[%emt 0:10:53]} Qe7 {[%emt 0:00:23]} 11. Nf1 {[%emt 0:03:43]} Bb7 {[%emt 0:00:59]} 12. Bg5 {[%emt 0:09:33]} Nbd7 {[%emt 0:02:24]} 13. N3d2 {[%emt 0:08:19]} h6 {[%emt 0:05:54]} 14. Bxf6 {[%emt 0:05:05]} Nxf6 {[%emt 0:00:38]} 15. Ne3 {[%emt 0:01:58]} Rad8 {[%emt 0:05:58]} 16. f3 {[%emt 0:08:20]} h5 {[%emt 0:03:18]} 17. h4 {[%emt 0:11:43]} Bh6 {[%emt 0:02:46]} 18. Ndf1 {[%emt 0:02:06]} Qc5 {[%emt 0:05:39]} 19. Qf2 {[%emt 0:00:40]} a5 {[%emt 0:09:10]} 20. Rxd8 {[%emt 0:02:48]} Rxd8 {[%emt 0:00:05]} 21. Rd1 {[%emt 0:00:08]} Rd4 {[%emt 0:05:11]} 22. c3 {[%emt 0:02:32]} Rxd1 {[%emt 0:01:12]} 23. Nxd1 {[%emt 0:00:01]} Qc4 {[%emt 0:00:43]} 24. a3 {[%emt 0:09:23]} Qd3 {[%emt 0:04:41]} 25. Nfe3 {[%emt 0:04:19]} Bf8 {[%emt 0:01:14]} 26. Qc2 {[%emt 0:05:38]} Qd7 {[%emt 0:02:38]} 27. Kf2 {[%emt 0:00:54]} a4 {[%emt 0:01:39]} 28. Bf1 {[%emt 0:00:42]} Bc5 {[%emt 0:03:38]} 29. Qd3 {[%emt 0:00:25]} Qe7 {[%emt 0:01:26]} 30. Qb5 {[%emt 0:02:40]} Qd6 {[%emt 0:02:03]} 31. Qd3 {[%emt 0:01:01]} Qe7 {[%emt 0:02:25]} 32. Qb5 {[%emt 0:00:12]} Qd8 {[%emt 0:00:54]} 33. Qd3 {[%emt 0:00:34]} Qe8 {[%emt 0:00:28]} 34. Bh3 {[%emt 0:07:45]} Kg7 {[%emt 0:06:29]} 35. Ke1 {[%emt 0:00:34]} c6 {[%emt 0:04:03]} 36. Qd2 {[%emt 0:03:35]} Kg8 {[%emt 0:12:46]} 37. Nc2 {[%emt 0:04:03]} Bc8 {[%emt 0:02:30]} 38. Bxc8 {[%emt 0:01:10]} Qxc8 {[%emt 0:00:04]} 39. Nf2 {[%emt 0:00:06]} Qe6 {[%emt 0:05:02]} 40. Kf1 {[%emt 0:02:48]} b5 {[%emt 0:03:26]} 41. Nb4 {[%emt 0:00:00]} Nd7 {[%emt 0:00:00]} 42. Nfd3 {[%emt 0:00:00]} Bb6 {[%emt 0:00:00]} 43. Kg2 {[%emt 0:00:00]} Qd6 {[%emt 0:00:07]} 44. Qc1 {[%emt 0:21:43]} Ba7 {[%emt 0:16:15]} 45. Qd1 {[%emt 0:02:06]} Qc7 {[%emt 0:04:58]} 46. Qd2 {[%emt 0:02:21]} Nb6 {[%emt 0:09:02]} 47. Nxe5 {[%emt 0:03:14]} Qxe5 {[%emt 0:00:49]} 48. Qd8+ {[%emt 0:00:01]} Kh7 {[%emt 0:03:29]} 49. Nxc6 {[%emt 0:00:05]} Qe6 {[%emt 0:00:33]} 50. Nxa7 {[%emt 0:00:16]} Nc4 {[%emt 0:00:11]} 51. Nxb5 {[%emt 0:01:21]} Nxb2 {[%emt 0:00:48]} 52. Qd5 {[%emt 0:01:24]} Qe7 {[%emt 0:00:27]} 53. Nd6 {[%emt 0:00:19]} Kg8 {[%emt 0:00:50]} 54. c4 {[%emt 0:00:50]} Qa7 {[%emt 0:00:30]} 55. c5 {[%emt 0:00:25]} Nd3 {[%emt 0:00:29]} 56. Qxd3 {[%emt 0:00:23]} Qxc5 {[%emt 0:00:04]} 57. Nc4 {[%emt 0:01:54]} 1-0

[Event "125-Jahre Werder Bremen 2024"]
[Site "Bremen"]
[Date "2024.03.09"]
[Round "8.1"]
[White "Teclaf, Pawel"]
[Black "Aditya Mittal"]
[Result "1/2-1/2"]
[ECO "D33"]
[WhiteElo "2556"]
[BlackElo "2594"]
[Annotator "TA"]
[PlyCount "41"]
[EventDate "2024.02.26"]
[EventType "swiss"]
[EventCountry "GER"]
[SourceTitle "playchess.com"]
[Source "ChessBase"]
[SourceQuality "1"]
[TimeControl "40/6000+30:1800+30"]

{[%evp 16,41,29,34,30,40,29,39,40,29,59,70,56,50,52,57,50,56,60,58,54,35,41,43,35,46,45,10]} 1. Nf3 {[%emt 0:00:02]} Nf6 {[%emt 0:00:01]} 2. c4 {[%emt 0:00:10]} c5 {[%emt 0:00:02]} 3. Nc3 {[%emt 0:00:33]} e6 {[%emt 0:00:01][%cal Be7e6,Be6d5,Bd5d4][%mdl 32]} 4. g3 {[%emt 0:03:42]} d5 {[%emt 0:00:06]} 5. cxd5 exd5 {[%emt 0:00:01]} 6. d4 {[%emt 0:00:12]} Nc6 {[%emt 0:00:02]} 7. Bg2 {[%emt 0:00:05]} cxd4 {[%emt 0:00:01]} 8. Nxd4 {[%emt 0:00:05]} Bc5 {[%emt 0:00:02]} 9. Nb3 {[%emt 0:01:20][%csl LRc5,LRd5]} Bb6 {[%emt 0:00:01]} 10. O-O {[%emt 0:01:16][%cal Oc1g5]} d4 {[%emt 0:00:09]} 11. Na4 {[%emt 0:00:04]} O-O {[%emt 0:00:02]} 12. Bg5 {[%emt 0:02:29]} h6 {[%emt 0:00:05]} 13. Nxb6 {White is slightly better.} axb6 {[%emt 0:00:03]} 14. Bxf6 Qxf6 {[%emt 0:00:02]} 15. Bxc6 $1 {[%emt 0:01:13]} bxc6 {[%emt 0:00:01]} 16. Qxd4 {[%emt 0:00:06]} Rd8 {[%emt 0:00:01]} 17. Qxf6 gxf6 {[%emt 0:00:02]} 18. Rfd1 {[%emt 0:07:40]} Rxd1+ {[%emt 0:00:36]} 19. Rxd1 {[%emt 0:00:31] Hoping for Rd8+.} Be6 $1 {[%emt 0:00:01]} 20. Nc1 {[%emt 0:00:09]} Bxa2 21. Nxa2 {[%emt 0:00:05] Weighted Error Value: White=0.04 (flawless) /Black=0.04 (flawless) .  Inaccurate:     	White=1     	Black=1      OK:         	White=6     	Black=4      Best:        	---       	Black=1      Strong:       	White=1     	Black=1} 1/2-1/2

[Event "125-Jahre Werder Bremen 2024"]
[Site "Bremen"]
[Date "2024.03.09"]
[Round "8.2"]
[White "Efimenko, Zahar"]
[Black "Cheng, Bobby"]
[Result "1/2-1/2"]
[ECO "B88"]
[WhiteElo "2568"]
[BlackElo "2584"]
[Annotator "RC"]
[PlyCount "99"]
[EventDate "2024.02.26"]
[EventType "swiss"]
[EventCountry "GER"]
[SourceTitle "playchess.com"]
[Source "ChessBase"]
[SourceQuality "1"]
[TimeControl "40/6000+30:1800+30"]

1. e4 {[%emt 0:00:43]} c5 {[%emt 0:00:30]} 2. Nf3 {[%emt 0:00:30]} d6 {[%emt 0:00:30]} 3. d4 {[%emt 0:00:30]} cxd4 4. Nxd4 {[%emt 0:00:30]} Nf6 {[%emt 0:01:00]} 5. Nc3 {[%emt 0:00:30]} a6 {[%emt 0:00:30]} 6. Bc4 {[%emt 0:00:30]} e6 {[%emt 0:01:03]} 7. a4 {[%emt 0:00:30]} Be7 {[%emt 0:05:54]} 8. O-O {[%emt 0:00:42]} O-O {[%emt 0:00:30]} 9. Be3 {[%emt 0:00:39]} Nc6 {[%emt 0:05:14]} 10. Bb3 {[%emt 0:03:25]} Bd7 {[%emt 0:05:24]} 11. f4 {[%emt 0:03:04]} h6 {[%emt 0:17:51]} 12. Qe2 {[%emt 0:09:01]} Qa5 {[%emt 0:14:38]} 13. f5 {[%emt 0:06:16]} e5 {[%emt 0:05:15]} 14. Nxc6 {[%emt 0:01:21]} bxc6 {[%emt 0:01:24]} 15. Rad1 {[%emt 0:01:56]} Rab8 {[%emt 0:01:12]} 16. Bf2 {[%emt 0:06:15]} Rb4 {[%emt 0:05:18]} 17. Kh1 {[%emt 0:18:02]} Bc8 {[%emt 0:08:03]} 18. Qe1 {[%emt 0:08:58]} Qd8 {[%emt 0:09:26]} 19. Bc5 {[%emt 0:09:23]} dxc5 {[%emt 0:05:18]} 20. Rxd8 {[%emt 0:00:30]} Rxd8 {[%emt 0:00:30]} 21. Qe2 {[%emt 0:04:34]} Rdd4 {[%emt 0:01:59]} 22. Rd1 {[%emt 0:05:56]} c4 {[%emt 0:01:55]} 23. Ba2 {[%emt 0:00:32]} Bc5 {[%emt 0:03:50]} 24. a5 {[%emt 0:06:40]} Rxb2 {[%emt 0:05:12]} 25. Bxc4 {[%emt 0:00:30]} Rxd1+ {[%emt 0:04:37]} 26. Nxd1 {[%emt 0:02:18]} Rb1 {[%emt 0:00:30]} 27. Bd3 {[%emt 0:05:27]} h5 {[%emt 0:01:17]} 28. h3 {[%emt 0:01:11]} h4 {[%emt 0:00:41]} 29. Kh2 {[%emt 0:01:23]} Ra1 {[%emt 0:00:30]} 30. c3 {[%emt 0:02:59]} Bd6 {[%emt 0:01:49]} 31. Ne3 {[%emt 0:01:16]} Bc5 {[%emt 0:00:30]} 32. g4 {[%emt 0:02:57]} hxg3+ {[%emt 0:00:30]} 33. Kxg3 {[%emt 0:00:30]} Rxa5 {[%emt 0:01:05]} 34. Nc4 {[%emt 0:00:42]} Ra1 {[%emt 0:01:00]} 35. Qb2 {[%emt 0:01:51]} Rd1 {[%emt 0:00:30]} 36. Bc2 {[%emt 0:01:16]} Nh5+ {[%emt 0:00:30]} 37. Kh2 {[%emt 0:03:09]} Rf1 {[%emt 0:01:37]} 38. h4 {[%emt 0:01:21]} Rf2+ {[%emt 0:00:30]} 39. Kh3 {[%emt 0:00:30]} Rf3+ {[%emt 0:00:49]} 40. Kg2 {[%emt 0:00:51]} Rf2+ {[%emt 0:00:30]} 41. Kh3 {[%emt 0:30:44]} Nf4+ {[%emt 0:24:33]} 42. Kg4 {[%emt 0:00:00]} Rg2+ {[%emt 0:00:13]} 43. Kf3 {[%emt 0:00:00]} Rf2+ {[%emt 0:00:02]} 44. Kg4 {[%emt 0:00:00]} f6 {[%emt 0:00:38]} 45. Qb3 {[%emt 0:00:00]} Kh7 {[%emt 0:00:12]} 46. Bd1 {[%emt 0:00:00]} Bd7 {[%emt 0:02:40]} 47. Qb8 {[%emt 0:00:00]} Rg2+ {[%emt 0:05:20]} 48. Kf3 {[%emt 0:00:00]} Rf2+ {[%emt 0:00:53]} 49. Kg4 {[%emt 0:00:00]} Rg2+ {[%emt 0:00:26]} 50. Kf3 {[%emt 0:00:00]} 1/2-1/2

[Event "125-Jahre Werder Bremen 2024"]
[Site "Bremen"]
[Date "2024.03.09"]
[Round "8.3"]
[White "Kopylov, Daniel"]
[Black "Plat, Vojtech"]
[Result "1/2-1/2"]
[ECO "B08"]
[WhiteElo "2346"]
[BlackElo "2528"]
[Annotator "TA"]
[PlyCount "102"]
[EventDate "2024.02.26"]
[EventType "swiss"]
[EventCountry "GER"]
[SourceTitle "playchess.com"]
[Source "ChessBase"]
[SourceQuality "1"]
[TimeControl "40/6000+30:1800+30"]

{[%evp 33,102,0,0,0,0,-13,0,0,0,0,0,0,0,0,0,0,125,66,47,41,89,85,146,68,111,64,65,0,0,0,0,0,0,0,0,-6,-10,-28,0,0,0,0,0,0,0,-208,0,0,0,0,0,0,0,-109,0,0,0,0,0,0,0,0,0,0,0,0,0,0,0,0,0]} 1. d4 {[%emt 0:00:49]} g6 {[%emt 0:00:06]} 2. Nf3 {[%emt 0:00:53]} Bg7 {[%emt 0:00:07]} 3. e4 {[%emt 0:00:42]} d6 {[%emt 0:00:18]} 4. Nc3 {[%emt 0:00:27]} Nf6 {[%emt 0:00:05]} 5. Be3 {[%emt 0:00:20]} O-O {[%emt 0:01:30]} 6. Qd2 {[%emt 0:00:23]} Nc6 {[%emt 0:03:28] B08: Pirc Defence: Classical System.} 7. Bh6 {[%emt 0:02:27]} Bg4 {[%emt 0:01:48]} 8. Bxg7 Kxg7 {[%emt 0:00:05]} 9. d5 {[%emt 0:13:58]} Bxf3 {[%emt 0:03:50]} 10. gxf3 {[%emt 0:03:01]} Ne5 {[%emt 0:00:35]} 11. Be2 {[%emt 0:00:26]} c6 {[%emt 0:00:09]} 12. O-O-O {[%emt 0:18:27]} cxd5 {[%emt 0:01:23]} 13. Nxd5 {[%emt 0:07:39]} Nxd5 {[%emt 0:00:23]} 14. exd5 {[%emt 0:01:30]} Qb6 {[%emt 0:00:42]} 15. h4 {[%emt 0:05:53]} Qxf2 {[%emt 0:07:35]} 16. h5 {[%emt 0:06:33]} Rh8 {[%emt 0:01:02]} 17. h6+ $146 {[%emt 0:15:46]} ({Predecessor:} 17. f4 Nd7 18. Rdf1 Qc5 19. f5 Nf6 20. fxg6 hxg6 21. hxg6 fxg6 22. Rhg1 Rh6 23. Bd3 Qxd5 {½-½ Keskisarja,T (2255)-Heinimaki,L Tampere Elo Taraus op 1996 (1)}) 17... Kf8 {[%emt 0:00:25]} 18. Rdf1 {[%emt 0:02:27]} (18. f4 $5 Nd7 $8 19. Rh3 $16) 18... Qc5 {[%emt 0:00:34]} 19. Rh4 {[%emt 0:01:21]} a5 {[%emt 0:11:15]} 20. a4 {[%emt 0:04:24]} g5 {[%emt 0:01:26]} 21. Qxg5 {[%emt 0:10:33]} Rg8 $1 {[%emt 0:00:10]} 22. Qd2 {[%emt 0:00:12]} Rc8 {[%emt 0:04:28]} 23. Kb1 {[%emt 0:01:54]} Rg2 {[%emt 0:01:38]} 24. Re4 {[%emt 0:01:55]} Rg1 {[%emt 0:15:56]} (24... Rc7 $11) 25. Rxg1 {[%emt 0:01:34]} (25. f4 $16 Nf3 26. Qd1 (26. Bxf3 $2 Rxf1+ 27. Bd1 Qg1 $19) 26... Rxf1 27. Bxf1) 25... Qxg1+ $14 {[%emt 0:00:05]} 26. Ka2 {[%emt 0:00:08]} b6 {[%emt 0:03:18]} (26... Qg6 $14) 27. f4 $16 {[%emt 0:05:40]} Ng6 {[%emt 0:03:11] [#]} ({Better is} 27... Ng4) 28. Bd3 {[%emt 0:00:08]} ({White should try} 28. Qd3 $1 $16 {[%cal Rd3a6]} Kg8 (28... Qc1 $2 29. Rc4 $18) 29. Qa6) 28... Qg3 {[%emt 0:01:38]} 29. Ba6 {[%emt 0:01:16]} (29. b3 $16) 29... Rc5 $14 {[%emt 0:01:34]} 30. Qd4 {[%emt 0:02:14]} (30. b4 $1 $14 axb4 31. Rxb4) 30... f6 $1 $11 {[%emt 0:00:05]} 31. Bd3 {[%emt 0:01:00]} Qh2 {[%emt 0:02:01]} 32. b4 {[%emt 0:00:48]} axb4 {[%emt 0:01:42]} 33. Qxb4 {[%emt 0:00:02]} Rc8 {[%emt 0:04:22]} (33... Rxd5 34. Rc4 (34. Qc4 Rc5 $15) 34... Qxh6 (34... Rxd3 $2 35. Rc8+ Kf7 36. Qc4+ d5 37. Qxd3 $18) 35. Qxb6 $16) 34. Kb2 {[%emt 0:01:24]} Qxh6 {[%emt 0:00:21]} 35. Qxb6 {[%emt 0:00:14]} Nxf4 {[%emt 0:01:23]} 36. Ba6 $1 {[%emt 0:00:44]} Qg6 {[%emt 0:07:31]} 37. Rc4 {[%emt 0:01:14]} (37. Rxf4 $2 Qxc2+ 38. Ka3 (38. Ka1 $2 Qc1+ 39. Ka2 Rc2+ 40. Kb3 Qb2#) 38... Rc3+ 39. Kb4 Rb3+ 40. Ka5 Rxb6 $19) 37... Rxc4 {[%emt 0:00:06]} 38. Bxc4 {[%emt 0:00:03]} Qe4 {[%emt 0:00:22]} 39. Qc6 $2 {[%emt 0:00:36] [#]} (39. Qb5 $11 {and White is okay.}) 39... Qd4+ $2 {[%emt 0:00:52]} (39... h5 $1 $19 {[%cal Rh5h4] White must now prevent ...h4.} 40. Qc8+ Kg7) 40. Kb3 $11 {[%emt 0:00:38]} h5 {[%emt 0:01:19]} 41. a5 {[%emt 0:10:48]} h4 {[%emt 0:01:12]} 42. Qc8+ {[%emt 0:03:11]} Kf7 {[%emt 0:00:03]} 43. Qh8 {[%emt 0:01:56]} (43. Qf5 $11 {keeps the balance.}) 43... h3 {[%emt 0:07:01]} (43... Nxd5 $17 {( -> ...Qc3+)} 44. Qh5+ Ke6) 44. Qh7+ $11 {[%emt 0:08:25]} Ke8 {[%emt 0:03:37]} 45. Qg8+ {[%emt 0:02:56]} Kd7 {[%emt 0:00:03]} 46. Qb8 {[%emt 0:02:08]} Nxd5 {[%emt 0:03:16]} 47. Qb5+ {[%emt 0:01:06]} Ke6 {[%emt 0:00:04]} 48. a6 {[%emt 0:00:29]} Qc3+ {[%emt 0:00:15]} 49. Ka4 {[%emt 0:02:13]} Qa1+ $1 {[%emt 0:01:25]} (49... Qxc2+ $2 {perishes.} 50. Bb3 Qe4+ 51. Ka3 $18) 50. Kb3 {[%emt 0:00:02]} Qb1+ {[%emt 0:05:44]} 51. Ka4 $1 {[%emt 0:00:20]} Qa1+ $1 {[%emt 0:01:11]} (51... Qxc2+ $2 {is the wrong capture.} 52. Bb3 Qc5 (52... Qe4+ $2 53. Ka3 $18) 53. Bxd5+ Kxd5 54. a7 $18) 1/2-1/2

[Event "125-Jahre Werder Bremen 2024"]
[Site "Bremen"]
[Date "2024.03.09"]
[Round "8.4"]
[White "Gumularz, Szymon"]
[Black "Pajeken, Jakob Leon"]
[Result "1-0"]
[ECO "A28"]
[WhiteElo "2590"]
[BlackElo "2424"]
[Annotator "TA"]
[PlyCount "115"]
[EventDate "2024.02.26"]
[EventType "swiss"]
[EventCountry "GER"]
[SourceTitle "playchess.com"]
[Source "ChessBase"]
[SourceQuality "1"]
[TimeControl "40/6000+30:1800+30"]

{[%evp 9,115,-9,-10,-10,10,-8,0,0,0,0,0,0,16,0,0,-20,-8,-19,-16,-5,0,-6,0,0,0,0,0,-15,-10,-16,-20,-30,-22,-25,-14,-22,-25,-41,0,-12,-6,-27,-26,-23,-16,-25,-8,-6,-9,-4,-9,-10,0,0,6,0,7,0,36,12,29,0,12,14,52,37,64,70,69,72,82,20,58,0,84,66,69,70,106,106,106,102,150,163,168,168,214,228,222,216,227,235,215,178,275,292,268,277,300,291,375,371,424,420,616,591,730,704]} 1. c4 {[%emt 0:00:04]} e5 {[%emt 0:00:04]} 2. Nc3 {[%emt 0:00:15]} Nf6 {[%emt 0:00:19]} 3. Nf3 {[%emt 0:00:09]} Nc6 {[%emt 0:00:05]} 4. Qc2 {[%emt 0:00:13]} g6 {[%emt 0:02:49]} 5. e3 {[%emt 0:00:52]} Bg7 {[%emt 0:00:30]} 6. a3 {[%emt 0:00:23]} a5 {[%emt 0:01:19]} 7. Be2 {[%emt 0:02:16]} d5 {[%emt 0:03:56]} 8. cxd5 {Die Stellung ist ausgeglichen.} Nxd5 {[%emt 0:00:07]} 9. d3 {[%emt 0:00:22]} O-O {[%emt 0:00:40]} 10. O-O {[%emt 0:00:15]} Re8 {[%emt 0:05:02]} 11. Bd2 {[%emt 0:00:34]} Nxc3 12. Bxc3 {[%emt 0:03:25]} a4 {[%emt 0:05:36]} 13. Rac1 {[%emt 0:03:20]} Be6 {[%emt 0:02:09]} 14. Nd2 {[%emt 0:00:43]} Bd5 {[%emt 0:06:06]} 15. Rfd1 {[%emt 0:01:40]} Re7 {[%emt 0:19:35]} 16. Bg4 {[%emt 0:04:15]} h6 {[%emt 0:10:37]} 17. h3 {[%emt 0:00:58]} Kh7 {[%emt 0:01:59]} 18. e4 {[%emt 0:00:31]} Be6 {[%emt 0:00:13]} 19. Bxe6 {[%emt 0:00:06]} Rxe6 {[%emt 0:00:09]} 20. Nf3 {[%emt 0:00:05]} Qd7 {[%emt 0:02:23]} 21. Bd2 {[%emt 0:01:59]} b6 {[%emt 0:03:08]} 22. Be3 {[%emt 0:00:18]} Ra7 {[%emt 0:00:39]} 23. Rb1 {[%emt 0:11:49]} Nd4 {[%emt 0:05:41]} 24. Bxd4 {[%emt 0:00:58]} exd4 {[%emt 0:00:04]} 25. Rdc1 {[%emt 0:00:44]} Bf8 {[%emt 0:02:12]} 26. Re1 {[%emt 0:05:42]} Ra5 {[%emt 0:02:19]} 27. Rbc1 {[%emt 0:01:33]} Rc5 {[%emt 0:00:40]} 28. Qb1 {[%emt 0:00:24]} Rxc1 {[%emt 0:02:47]} 29. Rxc1 {[%emt 0:00:08]} c5 {[%emt 0:02:11]} 30. b3 {[%emt 0:01:59]} Be7 {[%emt 0:02:37]} 31. Qc2 {[%emt 0:01:04]} axb3 {[%emt 0:02:35]} 32. Qxb3 {[%emt 0:00:08]} Kg7 {[%emt 0:03:41]} 33. a4 {[%emt 0:00:23]} Bd6 {[%emt 0:01:49]} 34. Rb1 {[%emt 0:01:36]} (34. Qxb6 $2 {geht unter.} Bh2+ (34... Qxa4 35. Qb2 $14) 35. Kxh2 Rxb6 $19) 34... Bc7 {[%emt 0:02:19]} 35. Qc4 {[%emt 0:01:21]} Rf6 {[%emt 0:01:21][%cal Of6f3] ...Rxf3! ist eine echte Drohung.} 36. Kf1 {[%emt 0:01:25]} Qe7 {[%emt 0:04:12]} 37. Rb5 {[%emt 0:00:45][%cal Oa4a5]} Qd7 {[%emt 0:03:09] [#]} 38. a5 $1 {[%emt 0:02:28]} bxa5 {[%emt 0:00:08]} (38... Re6 39. axb6) 39. Rxc5 {[%emt 0:00:11]} ({Natürlich nicht} 39. Qxc5 Rc6 40. Qxd4+ Qxd4 41. Nxd4 Rc1+ 42. Ke2 a4 $11) 39... Bb6 {[%emt 0:00:31]} 40. Rc8 {[%emt 0:13:56] Weiß steht aktiver.} (40. Qxd4 $2 Qxd4 41. Nxd4 Bxc5 $19) (40. Ne5 $16 Qb7 41. Rd5) 40... Re6 {[%emt 0:03:26]} (40... Qb7 {ist vielschichtiger.} 41. Ne1 Qd7 42. Ke2 Re6) 41. Qc2 {[%emt 0:44:18]} (41. h4 $14) 41... Bd8 {[%emt 0:38:15]} (41... a4 $11 {bleibt in der Remisbreite.}) 42. Rc4 {[%emt 0:01:11]} Bf6 {[%emt 0:03:30]} 43. Kg1 {[%emt 0:00:22]} Qd6 {[%emt 0:00:00] Weiß behält die Zügel nun fest in der Hand.} 44. g3 {[%emt 0:00:00]} Qb6 {[%emt 0:00:00]} 45. Kg2 {[%emt 0:00:00]} Re7 {[%emt 0:00:00] [#]} ({Besser ist} 45... Qb5) 46. Rc6 $1 $16 {[%emt 0:00:00]} Qb4 {[%emt 0:00:00] [#]} 47. Rc8 $1 {[%emt 0:00:00]} Qb7 {[%emt 0:00:00]} (47... Rd7 $142 48. Ra8 Rd8) 48. Rc5 $18 {[%emt 0:00:00]} Qa8 {[%emt 0:00:00] Schwarz ist schwach auf den weissen Feldern} 49. Qa4 {[%emt 0:00:00][%csl LRa5,LRd4]} Ra7 {[%emt 0:00:00]} 50. Nxd4 {[%emt 0:00:00][%cal Bf3d4,Bd4b3,Bb3a5,Ba5b7,Bb7d6,Bd6c8][%mdl 32]} Qf8 {[%emt 0:00:00]} 51. Nb3 {[%emt 0:00:00]} (51. Rxa5 $2 {verliert.} Rxa5 $19) 51... Rb7 {[%emt 0:00:00]} (51... Qd6 $142) 52. Nxa5 {[%emt 0:00:00]} Qxc5 {[%emt 0:00:00]} 53. Nxb7 {[%emt 0:00:00] KQB-KQN} Qc7 {[%emt 0:00:00]} 54. Qb5 {[%emt 0:00:00]} Bd4 {[%emt 0:00:00] ( -> ...Qc2)} 55. Qd5 {[%emt 0:00:00]} Bb6 {[%emt 0:00:00]} 56. Nd6 {[%emt 0:00:00] Droht stark Ne8+.} Qa7 {[%emt 0:00:00]} (56... Kg8 $142 57. Qa8+ Qd8 58. Qxd8+ Bxd8) 57. Qe5+ {[%emt 0:00:00]} Kg8 {[%emt 0:00:00]} 58. Nc8 {[%emt 0:00:00] Gewichteter Fehlerwert: Weiß=0.09 (makellos) /Schwarz=0.22 (präzise) .  Fehler:       	Weiß=2     	Schwarz=5     Ungenau:       	Weiß=1     	Schwarz=6     OK:         	Weiß=25    	Schwarz=16    Bester:       	Weiß=3     	---        Stark:        	Weiß=1     	---} 1-0

[Event "125-Jahre Werder Bremen 2024"]
[Site "Bremen"]
[Date "2024.03.09"]
[Round "8.5"]
[White "Pruijssers, Roeland"]
[Black "Breutigam, Martin"]
[Result "1-0"]
[ECO "B08"]
[WhiteElo "2537"]
[BlackElo "2359"]
[Annotator "TA"]
[PlyCount "55"]
[EventDate "2024.02.26"]
[EventType "swiss"]
[EventCountry "GER"]
[SourceTitle "playchess.com"]
[Source "ChessBase"]
[SourceQuality "1"]
[TimeControl "40/6000+30:1800+30"]

{[%evp 12,55,25,29,40,22,36,39,22,16,57,58,141,143,125,139,183,183,182,173,213,155,322,321,336,329,345,339,339,337,622,606,614,591,517,497,1003,1039,1041,925,29995,29996,29996,29997,29997,29998]} 1. e4 {[%emt 0:00:05]} Nc6 {[%emt 0:00:43]} 2. Nf3 {[%emt 0:01:39]} d6 {[%emt 0:00:14]} 3. d4 {[%emt 0:02:07]} Nf6 {[%emt 0:00:26]} 4. Nc3 {[%emt 0:03:53]} g6 {[%emt 0:00:39]} 5. h3 {[%emt 0:05:09]} Bg7 {[%emt 0:00:26]} 6. Be3 {[%emt 0:00:07]} O-O {[%emt 0:00:49]} 7. Qd2 {[%emt 0:00:10]} a6 {[%emt 0:05:17]} 8. Be2 {[%emt 0:04:50]} b5 {[%emt 0:02:43]} 9. a3 {[%emt 0:00:09]} Bb7 {[%emt 0:05:08] White is slightly better.} 10. d5 {[%emt 0:04:34]} Nb8 {[%emt 0:00:51]} 11. Bh6 {[%emt 0:12:24]} c6 {[%emt 0:02:19] [#]} ({Black should play} 11... c5 $14) 12. h4 $1 $16 {[%emt 0:07:33][%cal Oh4h5] White has more active pieces. The black rooks are passive.} cxd5 {[%emt 0:14:50]} 13. exd5 {[%emt 0:00:58][%cal Oh4h5]} Bxh6 {[%emt 0:18:27]} 14. Qxh6 {[%emt 0:00:09] Black must now prevent Ng5.} Ng4 {[%emt 0:00:06]} 15. Qf4 {[%emt 0:07:20]} h5 {[%emt 0:02:32][%cal Bh7h5,Bh5g4][%mdl 32]} 16. Ng5 {[%emt 0:00:10]} e5 $2 {[%emt 0:08:19]} (16... Qc8 $16 17. Nge4 Rd8) 17. dxe6 $18 {[%emt 0:01:17]} fxe6 {[%emt 0:00:09]} 18. Qg3 {[%emt 0:00:41]} Qf6 {[%emt 0:03:17]} 19. Bxg4 {[%emt 0:05:05]} (19. Qxd6 Qxf2+ 20. Kd1 Re8 $11) 19... hxg4 {[%emt 0:00:05]} 20. O-O-O {[%emt 0:00:45]} (20. Qxd6 Qxf2+ 21. Kd1 Qxg2 22. Qxe6+ Kh8 23. Qe5+ (23. Re1 Nc6 $17) 23... Kg8 24. Qe6+ Kh8 25. Qe5+ (25. Re1 Nc6 $17) 25... Kg8 26. Qe6+ $11) 20... Qxf2 $2 {[%emt 0:05:26]} (20... Nc6 21. Nce4 (21. Rxd6 Nd4 $18) (21. Qxg4 Ne5 $18) (21. Qxd6 Nd8 $18) 21... Qe5 22. Nxd6 (22. Rxd6 Rae8 $18) 22... Qxg3 23. fxg3 Nd8 24. Nxb7 Nxb7 25. Nxe6 Rf6) 21. Qxd6 {[%emt 0:01:26][%cal Od6e7] [#] Qe7! is the strong threat.} Qf4+ {[%emt 0:02:59]} 22. Qxf4 {[%emt 0:00:51]} Rxf4 {[%emt 0:00:05]} 23. Nxe6 {[%emt 0:00:12]} Rc4 {[%emt 0:00:25] Black is weak on the dark squares} (23... Rf6 $142 24. Rd8+ Kf7 25. Ng5+ Ke7) 24. Rd8+ {[%emt 0:14:03]} Kf7 {[%emt 0:00:06]} 25. Re1 {[%emt 0:01:53] Ng5+ would kill now.} Bxg2 {[%emt 0:03:22]} 26. Ng5+ {[%emt 0:02:08] A dynamic duo of knights. White mates.} Kg7 {[%emt 0:00:49]} 27. Re7+ {[%emt 0:00:11]} Kf6 {[%emt 0:00:11]} 28. Rde8 {[%emt 0:00:52] Black did not feel at home in the position after the opening.   Weighted Error Value: White=0.05 (flawless) /Black=0.79.  Loses game:     	---       	Black=1      Mistake:       	---       	Black=3      Inaccurate:     	---       	Black=2      OK:         	White=7     	Black=3      Best:        	White=1     	Black=2      Strong:       	White=1     	---} 1-0